fUSD/lending_fUSD_20260417
["ID","MTS","AMOUNT","RATE_DAILY","PERIOD"]
[420628037,1776371432451,-377.0,8.643e-05,2]
[420628038,1776371432461,-1000.0,8.662e-05,2]
[420628039,1776371432471,-1000.0,8.672e-05,2]
[420628040,1776371432481,-419.0,8.675e-05,2]
[420628041,1776371432492,-150.0,8.677e-05,2]
[420628042,1776371432505,-419.0,8.681e-05,2]
[420628043,1776371432515,-484.71381786,8.681e-05,2]
[420628044,1776371432525,-377.0,8.697e-05,2]
[420628045,1776371432536,-377.0,8.709e-05,2]
[420628046,1776371432546,-396.0,8.71e-05,2]
[420628047,1776371432556,-1000.0,8.713e-05,2]
[420628048,1776371432567,-1000.0,8.718e-05,2]
[420628049,1776371432577,-546.84337055,8.72e-05,2]
[420628050,1776371432587,-1000.0,8.721e-05,2]
[420628051,1776371432596,-377.0,8.721e-05,2]
[420628052,1776371432606,-377.0,8.721e-05,2]
[420628053,1776371432616,-377.0,8.725e-05,2]
[420628054,1776371432626,-377.0,8.737e-05,2]
[420628055,1776371432636,-377.0,8.741e-05,2]
[420628056,1776371432646,-1000.0,8.745e-05,2]
[420628057,1776371432656,-395.85642293,8.75e-05,2]
[420628058,1776371432667,-610.0,8.758e-05,2]
[420628059,1776371432677,-394.0,8.758e-05,2]
[420628060,1776371432687,-377.0,8.762e-05,2]
[420628061,1776371432697,-152.85468521,8.764e-05,2]
[420628062,1776371432707,-1000.0,8.773e-05,2]
[420628063,1776371432717,-1000.0,8.775e-05,2]
[420628064,1776371432732,-530.0,8.776e-05,2]
[420628065,1776371432742,-238.0,8.776e-05,2]
[420628066,1776371432752,-162.27,8.797e-05,2]
[420628067,1776371432762,-150.0,8.8e-05,2]
[420628068,1776371432773,-319.52,8.822e-05,2]
[420628069,1776371432783,-219.35,8.827e-05,2]
[420628070,1776371432793,-377.0,8.861e-05,2]
[420628071,1776371432803,-377.0,8.875e-05,2]
[420628072,1776371432813,-500.0,8.899e-05,2]
[420628073,1776371432823,-150.0,8.917e-05,2]
[420628074,1776371432834,-384.0,8.931e-05,2]
[420628075,1776371432845,-377.0,8.936e-05,2]
[420628076,1776371432856,-150.0,8.977e-05,2]
[420628077,1776371432867,-262.3808947,8.991e-05,2]
[420628078,1776371432876,-1600.0,8.998e-05,2]
[420628079,1776371432886,-395.85642293,9.067e-05,2]
[420628080,1776371432896,-578.20924308,9.067e-05,2]
[420628081,1776371432906,-646.65982734,9.067e-05,2]
[420628082,1776371432916,-200.0,9.067e-05,2]
[420628083,1776371432926,-8565.75555911,9.067e-05,2]
[420628084,1776371432936,-1280.88388878,9.067e-05,2]
[420628085,1776371432946,-187.78006525,9.067e-05,2]
[420628086,1776371432957,-500.0,9.067e-05,2]
[420628087,1776371432967,-317.81348446,9.067e-05,2]
[420628088,1776371432977,-151.0,9.067e-05,2]
[420628089,1776371432987,-200.0,9.067e-05,2]
[420628090,1776371432996,-151.0,9.067e-05,2]
[420628091,1776371433007,-500.0,9.067e-05,2]
[420628092,1776371433016,-500.0,9.067e-05,2]
[420628093,1776371433026,-500.0,9.067e-05,2]
[420628094,1776371433036,-500.0,9.067e-05,2]
[420628095,1776371433047,-500.0,9.067e-05,2]
[420628096,1776371433057,-500.0,9.067e-05,2]
[420628097,1776371433066,-500.0,9.067e-05,2]
[420628098,1776371433076,-160.0,9.067e-05,2]
[420628099,1776371433086,-500.0,9.067e-05,2]
[420628100,1776371433096,-743.50770149,9.067e-05,2]
[420628101,1776371433108,-500.0,9.067e-05,2]
[420628102,1776371433119,-500.0,9.067e-05,2]
[420628103,1776371433132,-500.0,9.067e-05,2]
[420628104,1776371433143,-187.78006525,9.067e-05,2]
[420628105,1776371433155,-174.61919141,9.067e-05,2]
[420628106,1776371433166,-288.75734877,9.067e-05,2]
[420628107,1776371433178,-621.78829552,9.067e-05,2]
[420628108,1776371433190,-411.57624402,9.067e-05,2]
[420628109,1776371433200,-187.78006525,9.067e-05,2]
[420628110,1776371433212,-319.52,9.096e-05,2]
[420628111,1776371433221,-1513.486419,9.106e-05,2]
[420628112,1776371433233,-28686.407,9.106e-05,2]
[420628113,1776371433244,-2878.199765,9.106e-05,2]
[420628114,1776371433255,-8882.6885148,9.122e-05,2]
[420628115,1776371433267,-500.0,9.122e-05,2]
[420628116,1776371433277,-151.0,9.122e-05,2]
[420628117,1776371433288,-325.93545806,9.173e-05,2]
[420628118,1776371433299,-9211.34798985,9.177e-05,2]
[420628119,1776371433311,-500.0,9.177e-05,2]
[420628120,1776371433323,-151.0,9.177e-05,2]
[420628121,1776371433333,-5309.61,9.205e-05,2]
[420628122,1776371433345,-166.66,9.219e-05,2]
[420628123,1776371433355,-9552.16786547,9.232e-05,2]
[420628124,1776371433365,-500.0,9.232e-05,2]
[420628125,1776371433375,-151.0,9.232e-05,2]
[420628126,1776371433385,-2000.0,9.247e-05,2]
[420628127,1776371433394,-150.0,9.247e-05,2]
[420628128,1776371433404,-150.0,9.247e-05,2]
[420628129,1776371433414,-150.0,9.247e-05,2]
[420628130,1776371433424,-216.26350874,9.247e-05,2]
[420628131,1776371433433,-150.0,9.247e-05,2]
[420628132,1776371433443,-150.0,9.247e-05,2]
[420628133,1776371433453,-150.0,9.247e-05,2]
[420628134,1776371433463,-150.0,9.247e-05,2]
[420628135,1776371433472,-150.00000001,9.247e-05,2]
[420628136,1776371433482,-150.0,9.247e-05,2]
[420628137,1776371433492,-150.0,9.247e-05,2]
[420628138,1776371433501,-150.0,9.247e-05,2]
[420628139,1776371433511,-150.0,9.247e-05,2]
[420628140,1776371433521,-150.0,9.247e-05,2]
[420628141,1776371433531,-5000.0,9.263e-05,2]
[420628142,1776371433540,-250.0,9.263e-05,2]
[420628143,1776371433550,-193.0,9.263e-05,2]
[420628144,1776371433560,-500.0,9.273e-05,2]
[420628145,1776371433579,-500.0,9.273e-05,2]
[420628146,1776371433590,-160.05196007,9.273e-05,2]
[420628147,1776371433600,-160.04579163,9.273e-05,2]
[420628148,1776371433610,-500.43587122,9.273e-05,2]
[420628149,1776371433620,-500.0,9.273e-05,2]
[420628150,1776371433630,-500.0,9.273e-05,2]
[420628151,1776371433640,-500.0,9.273e-05,2]
[420628152,1776371433650,-500.0,9.273e-05,2]
[420628153,1776371433660,-420.0,9.275e-05,2]
[420628154,1776371433672,-1680.0,9.276e-05,2]
[420628155,1776371433683,-9905.5980765,9.287e-05,2]
[420628156,1776371433693,-500.0,9.287e-05,2]
[420628157,1776371433704,-151.0,9.287e-05,2]
[420628158,1776371433714,-420.0,9.29e-05,2]
[420628159,1776371433726,-292.37216748,9.291e-05,2]
[420628160,1776371433736,-500.0,9.291e-05,2]
[420628161,1776371433746,-500.0,9.291e-05,2]
[420628162,1776371433756,-173.53576883,9.291e-05,2]
[420628163,1776371433766,-500.0,9.291e-05,2]
[420628164,1776371433776,-500.0,9.291e-05,2]
[420628165,1776371433792,-646.51442559,9.291e-05,2]
[420628166,1776371433803,-500.0,9.291e-05,2]
[420628167,1776371433813,-500.0,9.291e-05,2]
[420628168,1776371433824,-500.0,9.291e-05,2]
[420628169,1776371433838,-500.0,9.291e-05,2]
[420628170,1776371433849,-500.0,9.291e-05,2]
[420628171,1776371433860,-500.0,9.291e-05,2]
[420628172,1776371433871,-500.0,9.291e-05,2]
[420628173,1776371433881,-500.0,9.291e-05,2]
[420628174,1776371433891,-500.0,9.291e-05,2]
[420628175,1776371433901,-500.0,9.291e-05,2]
[420628176,1776371433911,-500.0,9.291e-05,2]
[420628177,1776371433922,-500.0,9.291e-05,2]
[420628178,1776371433932,-500.0,9.291e-05,2]
[420628179,1776371433942,-500.0,9.291e-05,2]
[420628180,1776371433952,-500.0,9.291e-05,2]
[420628181,1776371433963,-500.0,9.291e-05,2]
[420628182,1776371433973,-500.0,9.291e-05,2]
[420628183,1776371433983,-500.0,9.291e-05,2]
[420628184,1776371433993,-500.0,9.291e-05,2]
[420628185,1776371434003,-500.0,9.291e-05,2]
[420628186,1776371434016,-500.0,9.291e-05,2]
[420628187,1776371434027,-500.0,9.291e-05,2]
[420628188,1776371434037,-500.0,9.291e-05,2]
[420628189,1776371434047,-500.0,9.291e-05,2]
[420628190,1776371434058,-500.0,9.291e-05,2]
[420628191,1776371434068,-500.0,9.291e-05,2]
[420628192,1776371434079,-500.0,9.291e-05,2]
[420628193,1776371434089,-500.0,9.291e-05,2]
[420628194,1776371434099,-500.0,9.291e-05,2]
[420628195,1776371434109,-500.0,9.291e-05,2]
[420628196,1776371434119,-500.0,9.291e-05,2]
[420628197,1776371434128,-500.0,9.291e-05,2]
[420628198,1776371434138,-500.0,9.291e-05,2]
[420628199,1776371434148,-500.0,9.291e-05,2]
[420628200,1776371434158,-500.0,9.291e-05,2]
[420628201,1776371434168,-500.0,9.291e-05,2]
[420628202,1776371434179,-500.0,9.291e-05,2]
[420628203,1776371434189,-500.0,9.291e-05,2]
[420628204,1776371434199,-500.0,9.291e-05,2]
[420628205,1776371434210,-500.0,9.291e-05,2]
[420628206,1776371434221,-500.0,9.291e-05,2]
[420628207,1776371434232,-500.0,9.291e-05,2]
[420628208,1776371434245,-155.57719866,9.291e-05,2]
[420628209,1776371434259,-500.0,9.291e-05,2]
[420628210,1776371434269,-500.0,9.291e-05,2]
[420628211,1776371434279,-500.0,9.291e-05,2]
[420628212,1776371434289,-500.0,9.291e-05,2]
[420628213,1776371434299,-500.0,9.291e-05,2]
[420628214,1776371434309,-500.0,9.291e-05,2]
[420628215,1776371434320,-500.0,9.291e-05,2]
[420628216,1776371434330,-500.0,9.291e-05,2]
[420628217,1776371434340,-500.0,9.291e-05,2]
[420628218,1776371434350,-500.0,9.291e-05,2]
[420628219,1776371434360,-500.0,9.291e-05,2]
[420628220,1776371434371,-300.0,9.291e-05,2]
[420628221,1776371434381,-500.0,9.291e-05,2]
[420628222,1776371434391,-500.0,9.291e-05,2]
[420628223,1776371434401,-487.0,9.292e-05,2]
[420628224,1776371434411,-151.0,9.292e-05,2]
[420628225,1776371434421,-151.0,9.292e-05,2]
[420628226,1776371434431,-151.0,9.292e-05,2]
[420628227,1776371434441,-151.0,9.292e-05,2]
[420628228,1776371434451,-151.0,9.292e-05,2]
[420628229,1776371434461,-252805.44888827,9.292e-05,2]
[420628230,1776371434471,-10272.10520533,9.342e-05,2]
[420628231,1776371434484,-500.0,9.342e-05,2]
[420628232,1776371434494,-319.52,9.37e-05,2]
[420628233,1776371434504,-1116.0,9.388e-05,2]
[420628234,1776371434514,-9892.28704802,9.397e-05,2]
[420628235,1776371434524,-500.0,9.397e-05,2]
[420628236,1776371434534,-255.0,9.403e-05,2]
[420628237,1776371434543,-150.0,9.418e-05,2]
[420628238,1776371434553,-150.0,9.418e-05,2]
[420628239,1776371434563,-500.0,9.452e-05,2]
[420628240,1776371434573,-150.0,9.498e-05,2]
[420628241,1776371434583,-286.45920067,9.498e-05,2]
[420628242,1776371434592,-500.0,9.507e-05,2]
[420628243,1776371434602,-500.0,9.562e-05,2]
[420628244,1776371434612,-150.0,9.589e-05,2]
[420628245,1776371434621,-150.0,9.589e-05,2]
[420628246,1776371434632,-150.0,9.589e-05,2]
[420628247,1776371434642,-166.01,9.589e-05,2]
[420628248,1776371434652,-150.0,9.589e-05,2]
[420628249,1776371434662,-200.0,9.615e-05,2]
[420628250,1776371434673,-1328.27659266,9.615e-05,2]
[420628251,1776371434683,-223.55717257,9.615e-05,2]
[420628252,1776371434692,-156.587,9.615e-05,2]
[420628253,1776371434704,-160.94599482,9.615e-05,2]
[420628254,1776371434714,-181.08010149,9.615e-05,2]
[420628255,1776371434724,-458.98000126,9.615e-05,2]
[420628256,1776371434734,-247.67168915,9.615e-05,2]
[420628257,1776371434744,-319.56,9.644e-05,2]
[420628258,1776371434753,-500.0,9.651e-05,2]
[420628259,1776371434763,-24999.99,9.67e-05,2]
[420628260,1776371434773,-5394.85,9.67e-05,2]
[420628261,1776371434783,-7617.55,9.67e-05,2]
[420628262,1776371434793,-9999.99,9.67e-05,2]
[420628263,1776371434803,-499.99,9.67e-05,2]
[420628264,1776371434813,-53652.39391605,9.67e-05,2]
[420628265,1776371437013,-61345.01038701,9.67e-05,2]
[420628266,1776371437029,-8807.68214449,9.67e-05,2]
[420628267,1776371437040,-2359.69470252,9.67e-05,2]
[420628275,1776371439217,-151.96331003,9.498e-05,2]
[420628276,1776371439227,-500.0,9.498e-05,2]
[420628277,1776371439237,-500.0,9.498e-05,2]
[420628278,1776371439246,-500.0,9.498e-05,2]
[420628279,1776371439255,-203.89264093,9.498e-05,2]
[420628288,1776371440031,-421.06803954,9.498e-05,2]
[420628289,1776371440040,-29982.51884993,9.67e-05,2]
[420628290,1776371440050,-1212.08,9.67e-05,2]
[420628291,1776371440060,-9999.99,9.67e-05,2]
[420628292,1776371440070,-11407.47,9.67e-05,2]
[420628293,1776371440080,-150.99,9.67e-05,2]
[420628294,1776371440090,-299.99,9.67e-05,2]
[420628295,1776371440098,-7181.96,9.67e-05,2]
[420628296,1776371440108,-9999.99,9.67e-05,2]
[420628297,1776371440118,-999.99,9.67e-05,2]
[420628298,1776371440128,-518.76,9.67e-05,2]
[420628299,1776371440137,-2461.14,9.67e-05,2]
[420628300,1776371440148,-4999.99,9.67e-05,2]
[420628301,1776371440158,-265.821081,9.67e-05,2]
[420628302,1776371440167,-265.821081,9.67e-05,2]
[420628303,1776371440177,-265.821081,9.67e-05,2]
[420628304,1776371440187,-265.821081,9.67e-05,2]
[420628305,1776371440198,-151.0,9.67e-05,2]
[420628306,1776371440207,-160.0,9.757e-05,2]
[420628307,1776371440216,-150.0,9.76e-05,2]
[420628308,1776371440227,-150.0,9.76e-05,2]
[420628309,1776371440237,-150.0,9.76e-05,2]
[420628310,1776371440246,-1000.0,9.821e-05,2]
[420628311,1776371440257,-393.16461267,9.821e-05,2]
[420628312,1776371440267,-171.93182394,9.821e-05,2]
[420628313,1776371440277,-1000.0,9.821e-05,2]
[420628314,1776371440288,-500.0,9.821e-05,2]
[420628315,1776371440298,-379.8890462,9.844e-05,2]
[420628316,1776371440307,-3228.12,9.846e-05,2]
[420628317,1776371440316,-1116.0,9.883e-05,2]
[420628318,1776371440326,-162.27,9.906e-05,2]
[420628319,1776371440336,-166.66,9.922e-05,2]
[420628320,1776371440348,-500.0,9.925e-05,2]
[420628321,1776371440358,-150.0,9.932e-05,2]
[420628322,1776371440369,-150.0,9.932e-05,2]
[420628323,1776371440379,-150.0,9.932e-05,2]
[420628324,1776371440389,-150.0,9.932e-05,2]
[420628325,1776371440398,-350.0,9.965e-05,2]
[420628326,1776371440408,-1826.899,9.972e-05,2]
[420628327,1776371440418,-164.32,9.972e-05,2]
[420628328,1776371440427,-23105.9545354,9.991e-05,2]
[420628329,1776371440439,-1600.0,9.998e-05,2]
[420628330,1776371440449,-165.3395,0.0001,2]
[420628331,1776371440460,-151.0,0.0001,2]
[420628332,1776371440471,-500.0,0.0001,2]
[420628333,1776371440483,-151.0,0.0001,2]
[420628334,1776371440493,-259.59582917,0.0001,2]
[420628335,1776371440502,-151.0,0.0001,2]
[420628336,1776371440511,-200.0,0.0001,2]
[420628337,1776371440521,-151.0,0.0001,2]
[420628338,1776371440530,-151.0,0.0001,2]
[420628339,1776371440539,-151.0,0.0001,2]
[420628340,1776371440549,-151.0,0.0001,2]
[420628341,1776371440558,-244.12491678,0.0001,2]
[420628342,1776371440567,-1243.57659104,0.0001,2]
[420628343,1776371440577,-151.0,0.0001,2]
[420628344,1776371440586,-250.0,0.0001,2]
[420628345,1776371440595,-1264.0,0.00010002,2]
[420628346,1776371440604,-926.0,0.00010002,2]
[420628347,1776371440613,-1218.0,0.00010002,2]
[420628349,1776371440623,-3528.0,0.00010002,2]
[420628350,1776371440632,-6028.0,0.00010002,2]
[420628351,1776371440641,-350.0,0.00010009,2]
[420628352,1776371440650,-176.51,0.00010015,2]
[420628353,1776371440659,-150.0,0.00010103,2]
[420628354,1776371440669,-150.0,0.00010103,2]
[420628355,1776371440678,-162.24995704,0.00010109,2]
[420628356,1776371440687,-200.0,0.00010163,2]
[420628357,1776371440697,-1377.42282659,0.00010163,2]
[420628358,1776371440706,-162.380719,0.00010163,2]
[420628359,1776371440715,-187.78006525,0.00010163,2]
[420628360,1776371440724,-150.0,0.00010187,2]
[420628361,1776371440734,-150.0,0.00010187,2]
[420628362,1776371440743,-150.0,0.00010187,2]
[420628363,1776371440752,-150.0,0.00010187,2]
[420628364,1776371440761,-150.0,0.00010187,2]
[420628365,1776371440770,-150.0,0.00010187,2]
[420628366,1776371440779,-500.0,0.00010199,2]
[420628367,1776371440788,-191.697,0.000102,2]
[420628368,1776371440798,-151.07097,0.000102,2]
[420628369,1776371440807,-985.08491038,0.000102,2]
[420628370,1776371440816,-587.0,0.00010203,2]
[420628371,1776371440826,-2351.0,0.00010204,2]
[420628372,1776371440835,-587.0,0.00010218,2]
[420628373,1776371440845,-200.0,0.00010236,2]
[420628374,1776371440856,-312.96,0.00010236,2]
[420628375,1776371440866,-247.40147927,0.00010274,2]
[420628376,1776371440877,-150.0,0.00010274,2]
[420628377,1776371440887,-150.00000001,0.00010274,2]
[420628378,1776371440896,-150.0,0.00010274,2]
[420628379,1776371440906,-150.0,0.00010274,2]
[420628380,1776371440915,-150.0,0.00010274,2]
[420628381,1776371440926,-150.0,0.00010274,2]
[420628382,1776371440935,-2000.0,0.00010274,2]
[420628383,1776371440944,-158159.9592306,0.000103,2]
[420628384,1776371440953,-182735.49320837,0.000103,2]
[420628385,1776371440963,-151.0,0.000103,2]
[420628386,1776371440973,-151.0,0.000103,2]
[420628387,1776371440984,-151.0,0.000103,2]
[420628388,1776371440994,-151.0,0.000103,2]
[420628389,1776371441004,-151.0,0.000103,2]
[420628390,1776371441014,-151.0,0.000103,2]
[420628391,1776371441024,-151.0,0.000103,2]
[420628392,1776371441034,-151.0,0.000103,2]
[420628393,1776371441044,-238.561832,0.000103,2]
[420628394,1776371441054,-265.821081,0.000103,2]
[420628395,1776371441063,-265.821081,0.000103,2]
[420628396,1776371441073,-265.821081,0.000103,2]
[420628397,1776371441083,-265.821081,0.000103,2]
[420628398,1776371441093,-265.821081,0.000103,2]
[420628399,1776371441102,-265.821081,0.000103,2]
[420628400,1776371441113,-265.821081,0.000103,2]
[420628401,1776371441122,-265.821081,0.000103,2]
[420628402,1776371441133,-151.0,0.000103,2]
[420628403,1776371441143,-151.07098,0.000103,2]
[420628404,1776371441152,-151.0,0.000103,2]
[420628405,1776371441162,-151.0,0.000103,2]
[420628406,1776371441172,-151.0,0.000103,2]
[420628407,1776371441183,-151.0,0.000103,2]
[420628408,1776371441192,-203.171136,0.000103,2]
[420628409,1776371441202,-203.171136,0.000103,2]
[420628410,1776371441211,-203.171136,0.000103,2]
[420628411,1776371441221,-203.171136,0.000103,2]
[420628412,1776371441231,-203.171136,0.000103,2]
[420628413,1776371441240,-203.171136,0.000103,2]
[420628414,1776371441250,-203.171136,0.000103,2]
[420628415,1776371441259,-203.171136,0.000103,2]
[420628416,1776371441268,-433.0,0.00010343,2]
[420628417,1776371441279,-350.0,0.00010366,2]
[420628418,1776371441288,-609.95408242,0.00010368,2]
[420628419,1776371441297,-263.75315342,0.000104,2]
[420628420,1776371441306,-3298.38096667,0.000104,5]
[420628421,1776371441336,-641.61903333,0.000104,5]
[420628422,1776371441346,-1116.0,0.00010403,2]
[420628423,1776371441355,-350.0,0.00010403,2]
[420628424,1776371441364,-350.0,0.00010412,2]
[420628425,1776371441373,-301.85157499,0.00010416,2]
[420628426,1776371441393,-48.14842501,0.00010416,2]
[420628427,1776371441402,-310.6458406,0.00010436,2]
[420628428,1776371441411,-194.72792766,0.00010436,2]
[420628429,1776371441420,-111.47780673,0.00010441,2]
[420628446,1776371442738,-622.0,9.929e-05,2]
[420628447,1776371442748,-238.52219327,0.00010441,2]
[420628448,1776371442759,-500.0,0.00010473,2]
[420628449,1776371442768,-151.0,0.00010475,2]
[420628450,1776371442777,-151.0,0.00010475,2]
[420628451,1776371442786,-151.0,0.00010475,2]
[420628452,1776371442795,-151.0,0.00010475,2]
[420628453,1776371442804,-151.0,0.00010475,2]
[420628454,1776371442813,-151.0,0.00010475,2]
[420628455,1776371442822,-985.08491036,0.00010483,2]
[420628456,1776371442831,-319840.35177181,0.000105,2]
[420628457,1776371442843,-6304.12939191,0.000105,2]
[420628458,1776371443007,-22.78663921,0.000105,2]
[420628459,1776371443087,-233.27632037,0.0001049,2]
[420628460,1776371443097,-316.73435363,0.000105,2]
[420628461,1776371443108,-2311.6015517,0.000105,2]
[420628462,1776371443141,-688.42641995,0.000105,2]
[420628471,1776371445780,-439.41047523,9.999e-05,2]
[420628472,1776371445837,-60.58952477,9.999e-05,2]
[420628473,1776371445848,-248.77928813,9.999e-05,2]
[420628474,1776371445858,-423.82090276,9.999e-05,2]
[420628475,1776371445869,-500.0,9.999e-05,2]
[420628476,1776371445879,-435.94313587,9.999e-05,2]
[420628477,1776371445889,-500.0,9.999e-05,2]
[420628478,1776371445899,-500.0,9.999e-05,2]
[420628479,1776371445909,-500.0,9.999e-05,2]
[420628480,1776371445920,-500.0,9.999e-05,2]
[420628481,1776371445929,-394.67740499,9.999e-05,2]
[420628482,1776371445940,-500.0,9.999e-05,2]
[420628483,1776371445950,-99550.90240551,0.000105,2]
[420628484,1776371445961,-74405.00035589,0.000105,2]
[420628485,1776371445976,-23360.02313673,0.000105,2]
[420628486,1776371445985,-150.0,0.000105,2]
[420628487,1776371445995,-365.90396006,0.000105,2]
[420628488,1776371446004,-265.821081,0.000105,2]
[420628489,1776371446014,-265.821081,0.000105,2]
[420628490,1776371446023,-265.821081,0.000105,2]
[420628491,1776371446033,-265.821081,0.000105,2]
[420628492,1776371446043,-151.0,0.000105,2]
[420628493,1776371446053,-151.0,0.000105,2]
[420628494,1776371446062,-203.171136,0.000105,2]
[420628495,1776371446072,-203.171136,0.000105,2]
[420628496,1776371446081,-203.171136,0.000105,2]
[420628497,1776371446091,-203.171136,0.000105,2]
[420628498,1776371446100,-1383.316049,0.00010548,2]
[420628499,1776371446109,-151.0,0.00010548,2]
[420628500,1776371446118,-201.93286099,0.00010576,2]
[420628501,1776371446127,-420.13926309,0.00010596,2]
[420628502,1776371446137,-420.12,0.00010596,2]
[420628503,1776371446147,-488.04178296,0.00010596,2]
[420628504,1776371446157,-350.0,0.00010627,2]
[420628505,1776371446166,-162.27,0.0001064,2]
[420628506,1776371446175,-293.29,0.00010666,2]
[420628507,1776371446185,-7564.0,0.00010685,2]
[420628508,1776371446194,-168.51,0.00010693,2]
[420628509,1776371446203,-168.51,0.00010693,2]
[420628510,1776371446212,-300.0,0.000107,2]
[420628511,1776371446222,-1000.0,0.000107,2]
[420628512,1776371446231,-1000.0,0.000107,2]
[420628513,1776371446240,-1000.0,0.000107,2]
[420628514,1776371446250,-1000.0,0.000107,2]
[420628515,1776371446261,-106654.97407921,0.000107,2]
[420628516,1776371446273,-38065.15629543,0.000107,2]
[420628517,1776371446282,-193894.84370357,0.000107,2]
[420628518,1776371446900,-150.0,9.498e-05,2]
[420628519,1776371446910,-150.0,9.498e-05,2]
[420628520,1776371446920,-6454.41849012,0.00010494,2]
[420628559,1776371504119,152.0,0.00010687,30]
[420628560,1776371540116,430.86754399,0.000165,30]
[420628561,1776371604341,172.3470176,0.000165,30]
[420628562,1776371604721,229.79602346,0.000164,120]
[420628563,1776372319934,150.0,8.162e-05,2]
[420628564,1776372322490,150.0,8.162e-05,2]
[420628565,1776372323306,150.0,8.162e-05,2]
[420628566,1776372323340,150.0,8.388e-05,2]
[420628567,1776372323811,150.0,8.162e-05,2]
[420628568,1776372325656,150.0,8.162e-05,2]
[420628569,1776372327206,150.0,8.162e-05,2]
[420628576,1776372631837,-259.0,8.414e-05,2]
[420628577,1776372631847,-164.52,8.414e-05,2]
[420628578,1776372631857,-150.0,8.464e-05,2]
[420628579,1776372631867,-576.54912523,8.497e-05,2]
[420628580,1776372631891,-1423.45087477,8.497e-05,2]
[420628581,1776372631902,-150.0,8.615e-05,2]
[420628582,1776372631911,-150.0,8.615e-05,2]
[420628583,1776372631921,-150.0,8.766e-05,2]
[420628584,1776372631931,-1461.519,8.788e-05,2]
[420628585,1776372631940,-164.32,8.788e-05,2]
[420628586,1776372631950,-600.0,8.8e-05,3]
[420628587,1776372631964,-150.0,8.842e-05,2]
[420628588,1776372631974,-1039.9927,8.865e-05,2]
[420628589,1776372631984,-300.0,8.865e-05,2]
[420628590,1776372631995,-1200.0,8.865e-05,2]
[420628591,1776372632005,-300.0,8.866e-05,2]
[420628592,1776372632015,-150.0,8.866e-05,2]
[420628593,1776372632025,-4152.7093,8.867e-05,2]
[420628594,1776372632035,-11356.2649,8.867e-05,2]
[420628595,1776372632046,-2500.0,8.867e-05,2]
[420628596,1776372632056,-1200.0,8.9e-05,3]
[420628597,1776372632066,-500.0,8.943e-05,2]
[420628598,1776372632076,-500.0,8.943e-05,2]
[420628599,1776372632086,-458.63773172,8.943e-05,2]
[420628600,1776372632096,-506.25645231,8.943e-05,2]
[420628601,1776372632106,-299.99,8.965e-05,2]
[420628602,1776372632117,-9999.99,8.965e-05,2]
[420628603,1776372632127,-9999.99,8.965e-05,2]
[420628604,1776372632137,-313.39,8.965e-05,2]
[420628605,1776372632147,-999.99,8.965e-05,2]
[420628606,1776372632158,-150.99,8.965e-05,2]
[420628607,1776372632168,-5951.65,8.965e-05,2]
[420628608,1776372632178,-1584.12,8.965e-05,2]
[420628609,1776372632193,-4634.63,8.965e-05,2]
[420628610,1776372632204,-499.99,8.965e-05,2]
[420628611,1776372632215,-9999.99,8.965e-05,2]
[420628612,1776372632225,-156.23,8.966e-05,2]
[420628613,1776372632236,-500.0,8.966e-05,2]
[420628614,1776372632247,-500.0,8.966e-05,2]
[420628615,1776372632257,-500.0,8.966e-05,2]
[420628616,1776372632267,-500.0,8.966e-05,2]
[420628617,1776372632277,-500.0,8.966e-05,2]
[420628618,1776372632287,-500.0,8.966e-05,2]
[420628619,1776372632297,-500.0,8.966e-05,2]
[420628620,1776372632307,-500.0,8.966e-05,2]